bitfinex/quotes_BTCUSD_20220105
["timestamp","ask_amount","ask_price","bid_price","bid_amount"]
[1641421722849,0.116122,43096.0,43090.0,1.08969957]
[1641421722850,0.20525197,43094.0,43090.0,1.08969957]
[1641421723050,0.00126619,43091.0,43080.0,0.02064]
[1641421723253,0.0053902,43090.0,43080.0,0.02064]
[1641421723451,0.0053902,43090.0,43076.0,0.02702822]
[1641421723452,0.5,43089.0,43076.0,0.02702822]
[1641421723669,0.058089,43079.0,43070.0,0.03020567]
[1641421723850,0.00121236,43075.0,43070.0,0.03020567]
[1641421724053,5.45e-06,43075.0,43067.0,0.00022]
[1641421724700,0.00128007,43069.0,43057.0,0.0313879]
[1641421724899,0.00114871,43061.0,43053.0,0.06711844]
[1641421725102,0.00114871,43061.0,43053.0,0.06211844]
[1641421725297,0.18610829,43060.0,43053.0,0.06211844]
[1641421725700,0.00730214,43061.0,43053.0,0.06211844]
[1641421725901,0.00730214,43061.0,43053.0,0.04211844]
[1641421726111,0.116105,43058.0,43047.0,0.00261]
[1641421726301,0.116105,43058.0,43050.0,0.07496313]
[1641421726603,0.115995,43058.0,43050.0,0.07296313]
[1641421726799,0.115885,43058.0,43050.0,0.07296313]
[1641421727000,0.3378658,43057.0,43049.0,0.00211]
[1641421727202,0.00120369,43051.0,43049.0,0.00211]
[1641421727401,0.00668115,43051.0,43047.0,0.00261]
[1641421727601,0.116145,43050.0,43046.0,0.428837]
[1641421727802,0.116145,43050.0,43046.0,0.4234468]
[1641421727803,0.00124816,43048.0,43046.0,0.4234468]
[1641421728005,0.01228087,43049.0,43045.0,0.61442925]
[1641421728201,0.0053902,43046.0,43045.0,0.51442925]
[1641421728448,0.18087158,43047.0,43045.0,0.04935525]
[1641421728449,0.18626178,43047.0,43045.0,0.04935525]
[1641421728640,0.0053902,43046.0,43045.0,0.04935525]
[1641421728835,0.0052802,43046.0,43045.0,0.04935525]
[1641421729035,0.0052802,43046.0,43039.0,0.00022]
[1641421729236,0.0277902,43046.0,43039.0,0.00022]
[1641421729438,0.0277902,43046.0,43037.0,0.0081403]
[1641421729737,0.058135,43042.0,43037.0,0.0081403]
[1641421730039,0.058025,43042.0,43037.0,0.0081403]
[1641421730240,0.058025,43042.0,43037.0,0.0066403]
[1641421730439,0.058025,43042.0,43035.0,0.00277985]
[1641421730635,0.058025,43042.0,43034.0,0.00417435]
[1641421730837,0.0053902,43041.0,43031.0,0.4760182]
[1641421731038,0.058137,43036.0,43031.0,0.0760182]
[1641421731246,0.053137,43036.0,43031.0,0.0760182]
[1641421731435,0.053137,43036.0,43031.0,0.0610182]
[1641421731637,0.053137,43036.0,43031.0,0.0510182]
[1641421732036,0.04992625,43032.0,43031.0,0.0510182]
[1641421732692,0.07221625,43032.0,43031.0,0.0510182]
[1641421732891,0.08221625,43032.0,43031.0,0.0310182]
[1641421733095,0.58221625,43032.0,43031.0,0.025628]
[1641421733692,0.58221625,43032.0,43026.0,0.03002696]
[1641421733894,0.58221625,43032.0,43025.0,0.05664468]
[1641421733895,0.04992625,43027.0,43025.0,0.05664468]
[1641421734091,0.053144,43029.0,43025.0,0.05664468]
[1641421734491,0.048144,43029.0,43025.0,0.05664468]
[1641421734691,0.048144,43029.0,43023.0,0.00111]
[1641421734891,0.04992625,43027.0,43023.0,0.00111]
[1641421735092,0.04492625,43027.0,43022.0,0.11155]
[1641421735293,0.116306,43027.0,43024.0,0.00010298]
[1641421735492,0.35,43025.0,43024.0,0.00010298]
[1641421735693,0.35,43025.0,43020.0,0.00410192]
[1641421735955,0.04492625,43021.0,43020.0,0.00410192]
[1641421736351,0.04492625,43021.0,43016.0,1.99965192]
[1641421736556,0.04492625,43017.0,43016.0,1.99965192]
[1641421736752,0.04492625,43020.0,43016.0,1.99965192]
[1641421737251,0.04492625,43020.0,43016.0,1.9659702]
[1641421737450,0.04492625,43020.0,43016.0,1.9656702]
[1641421737655,0.04492625,43018.0,43016.0,1.9656702]
[1641421737852,0.29826269,43019.0,43016.0,2.0235192]
[1641421738050,0.00629545,43020.0,43016.0,1.9653702]
[1641421738253,0.0512217,43020.0,43016.0,1.9653702]
[1641421738450,0.20088,43023.0,43016.0,1.9550702]
[1641421738451,0.26035617,43019.0,43016.0,1.9550702]
[1641421738650,0.26035617,43019.0,43016.0,1.9547702]
[1641421738651,0.04492625,43019.0,43016.0,1.9547702]
[1641421738851,0.04492625,43019.0,43018.0,0.00127801]
[1641421739051,0.05931645,43019.0,43018.0,0.00124284]
[1641421739260,0.05931645,43019.0,43016.0,1.9541702]
[1641421739451,0.00544777,43020.0,43016.0,1.9538702]
[1641421739703,0.02229,43018.0,43016.0,1.9538702]
[1641421739906,0.02229,43018.0,43016.0,1.9535702]
[1641421740105,0.0053902,43021.0,43016.0,1.9385702]
[1641421740306,0.17575231,43023.0,43016.0,1.9382702]
[1641421740606,0.0053902,43018.0,43016.0,1.9379702]
[1641421740805,0.00622884,43022.0,43016.0,1.6291702]
[1641421741008,0.00622884,43022.0,43016.0,1.6188702]
[1641421741207,0.00622884,43022.0,43016.0,1.61495559]
[1641421741408,0.02412143,43021.0,43016.0,1.61074959]
[1641421741608,0.02412143,43021.0,43016.0,1.60544959]
[1641421741815,0.014,43023.0,43016.0,1.60670834]
[1641421742007,0.014,43023.0,43021.0,0.00127595]
[1641421742208,0.01341691,43026.0,43020.0,0.05441795]
[1641421742407,0.0053902,43022.0,43019.0,0.00126121]
[1641421742608,0.5,43021.0,43019.0,0.00121439]
[1641421742808,0.5,43021.0,43019.0,0.00091439]
[1641421743011,0.5,43021.0,43019.0,0.00061439]
[1641421743012,0.0053902,43020.0,43019.0,0.00061439]
[1641421743308,0.0053902,43020.0,43018.0,0.00010457]
[1641421743309,0.0051902,43020.0,43018.0,0.00010457]
[1641421743739,0.0051902,43020.0,43016.0,1.3288219]
[1641421743940,0.0051902,43020.0,43016.0,1.3869699]
[1641421744444,0.69287091,43020.0,43016.0,1.3869699]
[1641421744638,0.67246091,43020.0,43017.0,0.00029944]
[1641421744838,0.65979111,43020.0,43017.0,0.00029944]
[1641421745041,0.53759,43020.0,43017.0,0.00029944]
[1641421745240,0.0053902,43019.0,43017.0,0.00029944]
[1641421746038,0.0003902,43019.0,43016.0,1.18650034]
[1641421746238,0.02252352,43018.0,43016.0,1.18650034]
[1641421746439,0.52252352,43018.0,43016.0,1.18650034]
[1641421747042,0.53052352,43018.0,43016.0,1.18650034]
[1641421748091,0.52482452,43018.0,43016.0,1.18650034]
[1641421748291,0.05835,43017.0,43016.0,1.18650034]
[1641421748792,0.05797696,43017.0,43016.0,1.18650034]
[1641421748993,0.06697696,43017.0,43016.0,1.18650034]
[1641421749192,0.06627796,43017.0,43016.0,1.18650034]
[1641421749394,0.08880148,43017.0,43016.0,1.18650034]
[1641421750293,0.07980148,43017.0,43016.0,1.18650034]
[1641421750964,0.08780148,43017.0,43016.0,1.18650034]
[1641421751738,0.18770148,43017.0,43016.0,1.18650034]
[1641421752142,0.17970148,43017.0,43016.0,1.18650034]
[1641421752641,0.18024074,43017.0,43016.0,1.18650034]
[1641421752840,0.16570348,43017.0,43016.0,1.18650034]
[1641421753042,0.17270348,43017.0,43016.0,1.18650034]
[1641421753240,0.12942352,43017.0,43016.0,1.18650034]
[1641421754240,0.12242352,43017.0,43016.0,1.18650034]
[1641421754440,0.12370342,43017.0,43016.0,1.18650034]
[1641421755085,0.13070342,43017.0,43016.0,1.18650034]
[1641421755285,0.13070342,43017.0,43016.0,1.18350034]
[1641421755486,0.19140798,43017.0,43016.0,1.18350034]
[1641421755685,0.19140798,43017.0,43016.0,1.17877402]
[1641421756288,0.18440798,43017.0,43016.0,1.15877402]
[1641421756687,1.03804919,43017.0,43016.0,1.15877402]
[1641421757087,1.04804919,43017.0,43016.0,1.15877402]
[1641421757298,1.04804919,43017.0,43016.0,1.05887402]
[1641421757299,0.09450798,43017.0,43016.0,1.05887402]
[1641421758550,0.08950798,43017.0,43016.0,1.05887402]
[1641421758752,0.07950798,43017.0,43016.0,1.05387402]
[1641421758953,0.08950798,43017.0,43016.0,1.05387402]
[1641421760155,0.07793209,43017.0,43016.0,1.05387402]
[1641421760351,0.57793209,43017.0,43016.0,1.05387402]
[1641421760554,0.07793209,43017.0,43016.0,1.05387402]
[1641421761354,0.06793209,43017.0,43016.0,1.05387402]
[1641421762190,0.06793209,43017.0,43016.0,1.04887402]
[1641421762696,0.04466067,43017.0,43016.0,1.03387402]
[1641421762892,0.24966067,43017.0,43016.0,1.03387402]
[1641421763091,0.04966067,43017.0,43016.0,1.03387402]
[1641421763492,0.54966067,43017.0,43016.0,1.03387402]
[1641421764293,0.54150883,43017.0,43016.0,1.03387402]
[1641421764494,0.547964,43017.0,43016.0,1.03387402]
[1641421764996,0.552964,43017.0,43016.0,1.03387402]
[1641421765198,0.55770883,43017.0,43016.0,1.03387402]
[1641421765394,0.56392654,43017.0,43016.0,1.03387402]
[1641421765594,0.5631058,43017.0,43016.0,0.03387402]
[1641421765794,0.55770883,43017.0,43016.0,0.02887402]
[1641421766043,0.058154,43019.0,43018.0,1.10924286]
[1641421766243,0.058154,43019.0,43016.0,0.02887402]
[1641421766444,0.05,43019.0,43016.0,0.02387402]
[1641421766642,0.70786974,43020.0,43016.0,0.02387402]
[1641421766842,0.65,43020.0,43016.0,0.02387402]
[1641421767043,0.004,43019.0,43016.0,0.02387402]
[1641421767241,0.062154,43019.0,43016.0,0.02397762]
[1641421767845,0.00123543,43017.0,43016.0,0.02397762]
[1641421768044,0.0538329,43019.0,43016.0,0.02397762]
[1641421768641,0.0538329,43019.0,43016.0,0.01897762]
[1641421769042,0.0588329,43019.0,43016.0,0.01897762]
[1641421770301,0.0538329,43019.0,43016.0,0.01897762]
[1641421770601,0.0538329,43019.0,43016.0,0.01887402]
[1641421770801,0.0053902,43018.0,43016.0,0.01887402]
[1641421771304,1.17632005,43020.0,43016.0,0.01887402]
[1641421771512,0.20848532,43017.0,42999.0,0.05011]
[1641421771702,0.00123997,43013.0,43007.0,0.117914]
[1641421771899,1.16330109,43013.0,43007.0,0.117914]
[1641421772099,1.16330109,43013.0,43008.0,0.116301]
[1641421772301,0.59647337,43012.0,43007.0,0.00161]
[1641421772498,0.0053902,43012.0,43007.0,0.00161]
[1641421772699,0.71377077,43012.0,43007.0,0.00161]
[1641421772897,0.0053902,43011.0,43007.0,0.00161]
[1641421773110,1.11408149,43011.0,43007.0,0.00161]
[1641421773297,1.11408149,43011.0,43007.0,0.00128415]
[1641421773542,1.10869129,43009.0,43001.0,0.20613957]
[1641421773752,1.08861788,43009.0,43002.0,0.058163]
[1641421774140,0.2679116,43008.0,43001.0,0.18590957]
[1641421774340,0.0053902,43010.0,43001.0,0.18590957]
[1641421774740,0.0053902,43007.0,43004.0,0.058164]
[1641421774939,0.44631391,43009.0,43004.0,0.111328]
[1641421775140,0.82145958,43007.0,43004.0,0.111328]
[1641421775541,0.82684978,43007.0,43004.0,0.111328]
[1641421775939,0.0053902,43007.0,43004.0,0.111328]
[1641421776141,0.0053902,43007.0,43006.0,0.05815896]
[1641421776743,0.00601403,43013.0,43006.0,0.05841864]
[1641421776941,0.00601403,43013.0,43008.0,0.116313]
[1641421777197,0.00601403,43013.0,43009.0,0.05815564]
[1641421777398,0.80066362,43013.0,43009.0,0.05815564]
[1641421777998,0.80066362,43013.0,43008.0,0.111313]
[1641421778199,0.79464959,43013.0,43008.0,0.16947087]
[1641421778403,0.00777774,43014.0,43011.0,0.116303]
[1641421778598,0.19015263,43017.0,43014.0,0.058152]
[1641421778599,0.17185848,43017.0,43014.0,0.058152]
[1641421778800,0.5,43016.0,43014.0,0.058152]
[1641421778999,0.6,43016.0,43014.0,0.058152]
[1641421779201,0.1,43016.0,43014.0,0.058152]
[1641421779401,0.1,43016.0,43011.0,0.116303]
[1641421779600,0.1,43016.0,43012.0,0.05815296]
[1641421780000,0.5,43015.0,43012.0,0.05815296]
[1641421780201,0.5,43015.0,43013.0,0.058153]
[1641421780401,0.6,43015.0,43013.0,0.058153]
[1641421780600,0.6,43015.0,43014.0,0.058152]
[1641421780801,0.59,43015.0,43014.0,0.058152]
[1641421781048,0.596,43015.0,43014.0,0.0533229]
[1641421781641,0.6159,43015.0,43014.0,0.0533229]
[1641421781841,0.1259,43015.0,43014.0,0.0533229]
[1641421782141,0.0259,43015.0,43012.0,0.09310562]
[1641421782341,0.0199,43015.0,43012.0,0.35308503]
[1641421782541,1.0199,43015.0,43012.0,0.0560313]
[1641421782742,1.0199,43015.0,43010.0,0.116304]
[1641421782942,1.1199,43015.0,43010.0,0.08778031]
[1641421783142,0.058159,43014.0,43010.0,0.08778031]
[1641421783342,0.058159,43014.0,43010.0,0.08788395]
[1641421783842,1.1279,43015.0,43010.0,0.14604095]
[1641421784041,1.1279,43015.0,43010.0,0.08288395]
[1641421784243,1.1279,43015.0,43008.0,0.26317597]
[1641421784444,1.1279,43015.0,43004.0,0.00122052]
[1641421784692,0.0053902,43014.0,43004.0,0.00122052]
[1641421784895,0.0053902,43014.0,43011.0,0.058155]
[1641421785098,0.0053902,43014.0,43007.0,0.116311]
[1641421785294,0.0199,43013.0,43007.0,0.116311]
[1641421785693,0.0053902,43012.0,43008.0,0.26784065]
[1641421785895,0.0053902,43012.0,43007.0,0.174469]
[1641421786895,0.0053902,43012.0,43008.0,0.058158]
[1641421787095,0.0223902,43012.0,43007.0,0.175469]
[1641421787296,0.0223902,43012.0,43009.0,0.058156]
[1641421787497,0.0053902,43011.0,43004.0,0.116311]
[1641421787795,0.017,43012.0,43004.0,0.116311]
[1641421788096,0.017,43012.0,43007.0,0.116311]
[1641421788295,0.0199,43013.0,43001.0,0.56319224]
[1641421788548,0.0199,43013.0,43004.0,0.0581586]
[1641421788745,0.0053902,43012.0,43007.0,0.058159]
[1641421788953,0.00120308,43011.0,43008.0,0.058158]
[1641421789144,0.0053902,43012.0,43008.0,0.058158]
[1641421789345,0.0053902,43010.0,43008.0,0.053158]
[1641421789544,0.0053902,43010.0,43008.0,0.038158]
[1641421790544,0.0199,43009.0,43008.0,0.038158]
[1641421790944,0.0199,43009.0,43004.0,0.05816]
[1641421791149,0.0199,43009.0,43001.0,0.4179659]
[1641421791150,0.22401267,43009.0,43001.0,0.4179659]
[1641421791347,0.0239,43009.0,43006.0,0.00010357]
[1641421791650,0.082062,43009.0,43001.0,0.3016449]
[1641421791844,0.082062,43009.0,43004.0,0.058162]
[1641421792045,0.072062,43009.0,43004.0,0.058162]
[1641421792493,0.14199055,43008.0,43001.0,0.3548089]
[1641421792694,0.14199055,43008.0,43001.0,0.1853249]
[1641421792695,0.058165,43006.0,43001.0,0.1853249]
[1641421793094,0.058165,43006.0,43000.0,5.1680062]
[1641421793294,0.00123554,43005.0,43000.0,5.1680062]
[1641421793496,0.004,43008.0,43000.0,5.1680062]
[1641421793497,0.00126506,43001.0,43000.0,5.1680062]
[1641421793696,0.05817,43003.0,43000.0,5.09385594]
[1641421793894,0.05817,43003.0,43000.0,5.08318314]
[1641421794095,0.004,43008.0,43000.0,4.05011314]
[1641421794096,0.15487394,43007.0,43000.0,4.05011314]
[1641421794399,0.15487394,43007.0,43000.0,3.96276342]
[1641421794400,0.35,43006.0,43000.0,3.96276342]
[1641421794594,0.92792085,43006.0,43000.0,3.96276342]
[1641421794795,1.227,43003.0,43000.0,3.90611139]
[1641421794995,1.227,43003.0,43000.0,3.89455139]
[1641421795195,0.00129285,43001.0,43000.0,3.89455139]
[1641421795395,0.185528,43006.0,43000.0,3.89455139]
[1641421795596,0.185528,43006.0,43003.0,0.00124252]
[1641421795597,0.011,43006.0,43003.0,0.00124252]
[1641421795795,0.011,43006.0,43000.0,3.79169391]
[1641421795796,0.0099,43002.0,43000.0,3.79169391]
[1641421796044,0.0099,43002.0,43000.0,3.78959391]
[1641421796643,0.00578015,43002.0,43000.0,3.78959391]
[1641421797047,0.01378015,43002.0,43000.0,3.78959391]
[1641421798245,0.05835,43001.0,43000.0,3.78959391]
[1641421798445,0.05835,43001.0,43000.0,3.38459391]
[1641421799901,0.05835,43001.0,43000.0,3.38559391]
[1641421800502,0.05835,43001.0,43000.0,3.38359391]
[1641421800703,0.06413015,43002.0,43000.0,3.38359391]
[1641421800905,0.06413015,43002.0,43001.0,0.00127724]
[1641421801506,0.058155,43010.0,43001.0,0.00127724]
[1641421801711,1.0,43015.0,43001.0,0.00127724]
[1641421801712,0.05835,43014.0,43005.0,0.00127721]
[1641421801905,0.05835,43014.0,43008.0,0.058145]
[1641421802107,0.10647122,43009.0,43007.0,0.232575]
[1641421802507,1.42,43015.0,43007.0,0.232575]
[1641421802508,0.0009,43013.0,43007.0,0.232575]
[1641421802705,0.05925,43013.0,43007.0,0.116289]
[1641421802906,0.05925,43013.0,43010.0,0.058144]
[1641421803106,0.06125,43013.0,43010.0,0.058144]
[1641421803304,1.0,43015.0,43010.0,0.058144]
[1641421803305,0.7453,43015.0,43010.0,0.058144]
[1641421803554,0.049,43015.0,43010.0,0.058144]
[1641421803752,0.05835,43014.0,43011.0,0.058144]
[1641421803950,0.00745,43015.0,43012.0,0.05835]
[1641421804151,0.00745,43015.0,43012.0,0.174627]
[1641421804351,0.1,43017.0,43012.0,0.174627]
[1641421804352,0.1,43017.0,43013.0,0.05835]
[1641421804754,0.1,43017.0,43013.0,0.058141]
[1641421805155,1.04708229,43026.0,43014.0,0.05937969]
[1641421805354,1.04708229,43026.0,43018.0,0.116255]
[1641421805555,1.04708229,43026.0,43020.0,0.05813196]
[1641421805752,1.04708229,43026.0,43022.0,0.058137]
[1641421805952,0.8278,43026.0,43022.0,0.058137]
[1641421806152,0.099263,43025.0,43022.0,0.058137]
[1641421806353,0.099263,43025.0,43023.0,0.058136]
[1641421806555,0.8278,43026.0,43023.0,0.058136]
[1641421806754,0.8228,43026.0,43023.0,0.058136]
[1641421806954,0.8278,43031.0,43023.0,0.058136]
[1641421807202,0.006,43026.0,43023.0,0.058136]
[1641421807605,0.006,43026.0,43025.0,0.05812949]
[1641421807804,0.236,43026.0,43025.0,0.05812949]
[1641421808003,0.19036486,43026.0,43025.0,0.05812949]
[1641421808206,0.78778643,43031.0,43025.0,0.05941944]
[1641421808408,0.78758509,43031.0,43027.0,0.058123]
[1641421808604,0.00045424,43031.0,43030.0,0.00121862]
[1641421809004,0.00545424,43031.0,43030.0,0.00221862]
[1641421809404,0.02924678,43031.0,43030.0,0.00221862]
[1641421809607,0.01844678,43031.0,43030.0,0.00221862]
[1641421809805,0.01304678,43031.0,43030.0,0.00221862]
[1641421810214,0.01337102,43038.0,43034.0,0.00125618]
[1641421810406,0.8278,43042.0,43038.0,0.00125869]
[1641421810605,0.8278,43042.0,43040.0,0.00127227]
[1641421811051,0.8308,43042.0,43040.0,0.00227227]
[1641421811453,0.36737537,43063.0,43040.0,0.00227227]
[1641421811454,0.7133604,43060.0,43040.0,0.00227227]
[1641421811650,1.11056013,43059.0,43046.0,0.00128604]
[1641421811850,1.22385541,43059.0,43046.0,0.00128604]
[1641421812151,0.11621,43054.0,43046.0,0.00128604]
[1641421812352,0.058105,43051.0,43046.0,0.00128604]
[1641421813153,0.002,43051.0,43050.0,0.00122727]
[1641421813351,0.999889,43054.0,43050.0,0.00122727]
[1641421813551,0.82907363,43066.0,43053.0,0.00129285]
[1641421813552,0.819789,43066.0,43053.0,0.00129285]
[1641421813755,0.17774345,43081.0,43053.0,0.00129285]
[1641421813756,0.03429288,43080.0,43065.0,0.00121701]
[1641421813950,0.03429288,43080.0,43073.0,0.00122851]
[1641421813951,0.5,43080.0,43073.0,0.00122851]
[1641421814152,0.84121602,43084.0,43065.0,0.00121701]
[1641421814153,0.87614573,43084.0,43076.0,0.00126833]
[1641421814352,0.25464395,43095.0,43087.0,0.00124598]
[1641421814353,0.02235795,43095.0,43087.0,0.00124598]
[1641421814703,1.44364514,43097.0,43096.0,0.00121628]
[1641421814704,0.14364514,43097.0,43096.0,0.00121628]
[1641421814896,0.01,43104.0,43103.0,0.00127323]
[1641421815098,0.0001,43104.0,43103.0,0.08189323]
[1641421815301,0.278,43106.0,43103.0,0.08189323]
[1641421815498,0.2979,43121.0,43115.0,0.00120637]
[1641421815900,0.2929,43121.0,43115.0,0.00120637]
[1641421816097,0.25005536,43129.0,43120.0,0.0012551]
[1641421816298,5.75137505,43130.0,43128.0,0.00120602]
[1641421816497,5.75137505,43130.0,43129.0,0.2]
[1641421816498,2.22207505,43130.0,43129.0,0.2]
[1641421816699,0.13033593,43137.0,43128.0,0.08364602]
[1641421816898,0.06111,43144.0,43129.0,0.00125458]
[1641421817097,0.09551821,43144.0,43143.0,0.00122796]
[1641421817298,0.05601,43144.0,43143.0,5.249e-05]
[1641421817502,0.8278,43161.0,43143.0,0.00124192]
[1641421817503,0.943722,43161.0,43143.0,0.00124192]
[1641421817699,0.03430389,43166.0,43143.0,0.00124192]
[1641421817700,0.1,43159.0,43154.0,0.00120259]
[1641421817902,0.1,43159.0,43158.0,0.00125808]
[1641421818099,0.095,43168.0,43157.0,0.01314]
[1641421818300,0.173885,43171.0,43158.0,0.00121375]
[1641421818553,0.173885,43171.0,43152.0,0.03162]
[1641421818554,0.057955,43164.0,43159.0,0.00123056]
[1641421818755,0.19739717,43171.0,43159.0,0.00123056]
[1641421818961,0.25005536,43170.0,43159.0,0.00123056]
[1641421819152,0.161085,43171.0,43159.0,0.00223056]
[1641421819353,0.25005536,43179.0,43159.0,0.00223056]
[1641421819354,0.21114036,43179.0,43159.0,0.07958]
[1641421819553,0.00135291,43180.0,43159.0,0.07958]
[1641421819554,0.0001,43180.0,43165.0,0.00120024]
[1641421819753,0.0001,43180.0,43159.0,0.07958]
[1641421819754,0.0001,43180.0,43164.0,0.01726]
[1641421819954,0.0001,43180.0,43163.0,0.00124369]
[1641421820154,0.057935,43175.0,43163.0,0.00124369]
[1641421820354,0.057935,43175.0,43161.0,0.0223]
[1641421820857,0.23015536,43189.0,43164.0,0.00124789]
[1641421821055,0.001,43175.0,43164.0,0.06145]
[1641421821256,0.057935,43174.0,43164.0,0.06145]
[1641421821454,0.21647215,43189.0,43179.0,0.00122621]
[1641421821655,0.0001,43190.0,43179.0,0.10702]
[1641421821956,0.0001,43190.0,43184.0,0.00120505]
[1641421822208,0.0001,43190.0,43180.0,0.24750911]
[1641421822410,0.20041539,43218.0,43181.0,0.371997]
[1641421822608,0.20041539,43218.0,43189.0,0.00122365]
[1641421822809,0.00120246,43212.0,43189.0,0.09358]
[1641421823218,0.057897,43204.0,43198.0,0.00010144]
[1641421823410,0.10513461,43218.0,43198.0,0.05581144]
[1641421823411,0.10013461,43218.0,43198.0,0.05581144]
[1641421823609,0.10013461,43218.0,43200.0,0.00128229]
[1641421823807,0.10013461,43218.0,43200.0,0.03250229]
[1641421824408,0.09413461,43218.0,43206.0,0.00122245]
[1641421824810,0.115751,43227.0,43206.0,0.00122245]
[1641421825110,0.002,43218.0,43206.0,0.001]
[1641421825957,0.002,43218.0,43215.0,0.00125643]
[1641421826150,0.0001,43218.0,43215.0,0.11076]
[1641421826353,1.07901936,43241.0,43217.0,0.00129773]
[1641421826547,1.07901936,43241.0,43215.0,0.11076]
[1641421827049,0.00127389,43223.0,43215.0,0.11176]
[1641421827449,0.00127389,43223.0,43221.0,0.00129747]
[1641421827650,0.00127389,43223.0,43221.0,0.01469747]
[1641421828050,0.00127389,43223.0,43221.0,0.0134]
[1641421828650,0.00127389,43223.0,43221.0,0.01046347]
[1641421829051,0.001,43223.0,43221.0,0.01274962]
[1641421829253,1.0001,43230.0,43221.0,0.01274962]
[1641421829451,1.0001,43230.0,43227.0,0.00124226]
[1641421829709,0.0001,43230.0,43229.0,0.00120935]
[1641421829908,0.01341062,43237.0,43229.0,0.371997]
[1641421830106,0.01341062,43237.0,43227.0,0.06998]
[1641421830107,1.0,43230.0,43227.0,0.06998]
[1641421831005,1.0,43230.0,43229.0,0.00029024]
[1641421831206,1.0,43230.0,43227.0,0.07298]
[1641421831808,0.7217,43230.0,43227.0,0.07298]
[1641421832206,0.0001,43240.0,43227.0,0.003]
[1641421832408,1.0,43230.0,43216.0,0.24860374]
[1641421832610,1.0,43230.0,43215.0,0.52]
[1641421832807,1.0,43230.0,43218.0,0.1]
[1641421833010,1.0,43230.0,43219.0,0.5446445]
[1641421833208,1.0,43230.0,43219.0,0.057841]
[1641421833209,1.00023974,43230.0,43219.0,0.057841]
[1641421833458,1.00023974,43230.0,43220.0,0.2869358]
[1641421833846,0.99523974,43230.0,43220.0,0.30926626]
[1641421834047,0.59523974,43230.0,43220.0,0.35429107]
[1641421834447,0.60457465,43230.0,43220.0,0.15]
[1641421834849,0.59575113,43230.0,43220.0,0.05]
[1641421835048,0.59575113,43230.0,43223.0,0.057836]
[1641421835248,0.59575113,43230.0,43220.0,0.006]
[1641421836448,0.59575113,43230.0,43218.0,0.184103]
[1641421836648,0.59575113,43230.0,43220.0,0.02233]
[1641421836649,0.57481113,43230.0,43220.0,0.02233]
[1641421836848,0.55387113,43230.0,43220.0,0.02233]
[1641421837047,0.74863113,43230.0,43220.0,0.02733]
[1641421837301,0.74863113,43230.0,43221.0,0.00675545]
[1641421837502,0.74863113,43230.0,43220.0,0.02733]
[1641421837700,0.74863113,43230.0,43221.0,0.00574789]
[1641421837904,0.74863113,43230.0,43221.0,0.08303]
[1641421839204,0.742468,43230.0,43221.0,0.08703]
[1641421840303,0.742468,43230.0,43222.0,0.5]
[1641421840504,0.742468,43230.0,43222.0,0.57548]
[1641421840955,0.736968,43230.0,43222.0,0.57548]
[1641421841149,0.736968,43230.0,43222.0,0.07948]
[1641421841550,0.2,43230.0,43222.0,0.004]
[1641421841750,0.55781419,43230.0,43222.0,0.004]
[1641421842255,0.55781419,43230.0,43210.0,0.42]
[1641421842450,0.55781419,43230.0,43212.0,0.01889]
[1641421842653,0.55781419,43230.0,43216.0,0.03256]
[1641421842853,0.00546022,43225.0,43212.0,0.01889]
[1641421843253,0.00546022,43225.0,43216.0,0.003]
[1641421844053,0.00546022,43225.0,43205.0,0.00572388]
[1641421844252,0.00546022,43225.0,43206.0,0.0051601]
[1641421844452,0.00546022,43225.0,43206.0,0.0062413]
[1641421844693,0.00546022,43225.0,43207.0,0.00215172]
[1641421844893,0.00546022,43225.0,43208.0,0.00547827]
[1641421845097,0.00546022,43225.0,43201.0,0.2491134]
[1641421845098,0.00122236,43222.0,43209.0,0.00767601]
[1641421845291,0.1457043,43227.0,43210.0,0.00593821]
[1641421845492,0.1457043,43227.0,43206.0,0.00492887]
[1641421845693,0.00126186,43228.0,43212.0,0.00729397]
[1641421845892,0.18517084,43226.0,43212.0,0.00528631]
[1641421846092,0.55501876,43230.0,43213.0,0.00628693]
[1641421846093,0.2491134,43229.0,43213.0,0.00628693]
[1641421846294,0.00120511,43226.0,43214.0,0.00619964]
[1641421846496,0.00120511,43226.0,43215.0,0.00560225]
[1641421846694,0.00120511,43226.0,43205.0,0.00613726]
[1641421846894,0.16577244,43225.0,43206.0,0.50642492]
[1641421847296,0.00128713,43220.0,43215.0,0.005]
[1641421847495,0.16577244,43225.0,43215.0,0.005]
[1641421847698,0.1,43220.0,43215.0,0.005]
[1641421848548,0.3,43220.0,43212.0,0.00700293]
[1641421848744,0.3,43220.0,43213.0,0.0053649]
[1641421848948,0.3,43220.0,43206.0,0.50725267]
[1641421849255,0.301,43220.0,43212.0,0.00833193]
[1641421849446,0.301,43220.0,43212.0,0.0085147]
[1641421849648,0.301,43220.0,43213.0,0.0079692]
[1641421849850,0.301,43220.0,43212.0,0.00823736]
[1641421850047,0.3003726,43220.0,43212.0,0.00849826]
[1641421850250,0.3003726,43220.0,43213.0,0.00516866]
[1641421850251,0.201,43220.0,43213.0,0.00516866]
[1641421850451,0.2,43220.0,43207.0,0.47631314]
[1641421850650,0.2,43220.0,43209.0,0.50682604]
[1641421850848,0.2,43220.0,43210.0,0.371997]
[1641421851047,0.18745212,43220.0,43211.0,0.371997]
[1641421851448,0.18745212,43220.0,43209.0,0.504]
[1641421851650,0.17873212,43220.0,43209.0,0.504]
[1641421851850,0.14529223,43219.0,43209.0,0.504]
[1641421852050,0.00126811,43218.0,43209.0,0.504]
[1641421852300,0.057887,43214.0,43209.0,0.004]
[1641421852503,0.00126811,43218.0,43200.0,0.0003]
[1641421852703,0.1,43216.0,43201.0,0.5]
[1641421852900,0.1,43216.0,43202.0,0.371997]
[1641421853306,0.1,43216.0,43201.0,0.5]
[1641421853902,0.00128174,43212.0,43201.0,0.5]
[1641421854106,0.1,43211.0,43201.0,0.5]
[1641421854411,0.1,43211.0,43201.0,0.495]
[1641421854804,0.1,43211.0,43200.0,0.0003]
[1641421855006,0.05789,43210.0,43200.0,0.0003]
[1641421855204,0.05789,43210.0,43203.0,9.935e-05]
[1641421855406,0.010011,43209.0,43203.0,9.935e-05]
[1641421855707,0.00127399,43207.0,43203.0,0.50009935]
[1641421856158,0.057898,43206.0,43203.0,9.935e-05]